﻿Body Name,Body,Service division categorisation,Expense Type,Date paid,Transaction Reference,Net,Supplier Name
East Lindsey District Council,http://statistics.data.gov.uk/id/local-authority/32UC,Growth Relationships & Growth Promotions,Other Miscellaneous Expenses,16/03/2021,IJ00089191,497.54,ALFORD TOWN COUNCIL
East Lindsey District Council,http://statistics.data.gov.uk/id/local-authority/32UC,Growth Relationships & Growth Promotions,Other Miscellaneous Expenses,16/03/2021,IJ00089191,312.49,ALFORD TOWN COUNCIL
East Lindsey District Council,http://statistics.data.gov.uk/id/local-authority/32UC,Growth Relationships & Growth Promotions,Professional & Contractors Fees,04/03/2021,IJ00088963,359.58,Biffa Waste Services Ltd
East Lindsey District Council,http://statistics.data.gov.uk/id/local-authority/32UC,Neighbourhood Services,Maintenance,11/03/2021,IJ00089167,1482.84,Chandlers (Farm Equipment) Ltd
East Lindsey District Council,http://statistics.data.gov.uk/id/local-authority/32UC,Neighbourhood Services,Maintenance,11/03/2021,IJ00089168,882.45,Chandlers (Farm Equipment) Ltd
East Lindsey District Council,http://statistics.data.gov.uk/id/local-authority/32UC,TL Property,Maintenance,16/03/2021,IJ00089195,648.31,Chandlers (Farm Equipment) Ltd
East Lindsey District Council,http://statistics.data.gov.uk/id/local-authority/32UC,Neighbourhood Services,Professional & Contractors Fees,11/03/2021,IJ00089073,212.00,Sid Dennis & Sons Ltd
East Lindsey District Council,http://statistics.data.gov.uk/id/local-authority/32UC,Neighbourhood Services,Professional & Contractors Fees,11/03/2021,IJ00089073,106.00,Sid Dennis & Sons Ltd
East Lindsey District Council,http://statistics.data.gov.uk/id/local-authority/32UC,Neighbourhood Services,Professional & Contractors Fees,11/03/2021,IJ00089073,212.00,Sid Dennis & Sons Ltd
East Lindsey District Council,http://statistics.data.gov.uk/id/local-authority/32UC,Neighbourhood Services,Professional & Contractors Fees,11/03/2021,IJ00089110,106.00,Sid Dennis & Sons Ltd
East Lindsey District Council,http://statistics.data.gov.uk/id/local-authority/32UC,Neighbourhood Services,Professional & Contractors Fees,11/03/2021,IJ00089110,106.00,Sid Dennis & Sons Ltd
East Lindsey District Council,http://statistics.data.gov.uk/id/local-authority/32UC,Neighbourhood Services,Professional & Contractors Fees,11/03/2021,IJ00089110,106.00,Sid Dennis & Sons Ltd
East Lindsey District Council,http://statistics.data.gov.uk/id/local-authority/32UC,Neighbourhood Services,Professional & Contractors Fees,16/03/2021,IJ00089197,287.00,Sid Dennis & Sons Ltd
East Lindsey District Council,http://statistics.data.gov.uk/id/local-authority/32UC,Neighbourhood Services,Professional & Contractors Fees,16/03/2021,IJ00089197,220.28,Sid Dennis & Sons Ltd
East Lindsey District Council,http://statistics.data.gov.uk/id/local-authority/32UC,Neighbourhood Services,Professional & Contractors Fees,16/03/2021,IJ00089197,106.00,Sid Dennis & Sons Ltd
East Lindsey District Council,http://statistics.data.gov.uk/id/local-authority/32UC,Hsg Advice & Homelessness TL,Furniture and Equipment,04/03/2021,IJ00088947,699.98,Faulkners
East Lindsey District Council,http://statistics.data.gov.uk/id/local-authority/32UC,Theatre Manager,Buildings Maintenance - Responsive,11/03/2021,IJ00089036,298.20,Lincoln Security Ltd
East Lindsey District Council,http://statistics.data.gov.uk/id/local-authority/32UC,TL Property,Buildings Maintenance - Programmed,04/03/2021,IJ00089030,500.00,Lincs Pumps & Pipelines Ltd
East Lindsey District Council,http://statistics.data.gov.uk/id/local-authority/32UC,Hsg Advice & Homelessness TL,Grants and Contributions to Outside Bodies- No Service Recei,11/03/2021,IJ00089113,4880.00,Sibjon Builders
East Lindsey District Council,http://statistics.data.gov.uk/id/local-authority/32UC,Corporate Management,Grants and Contributions to Outside Bodies- No Service Recei,04/03/2021,IJ00089001,900.00,Binbrook Parish Council
East Lindsey District Council,http://statistics.data.gov.uk/id/local-authority/32UC,Collection Fund,Precept - Lincolnshire Police,04/03/2021,IJ00089026,1142015.19,Local police Authority Fund Account
East Lindsey District Council,http://statistics.data.gov.uk/id/local-authority/32UC,Capital WIP,Purchase of Hardware,04/03/2021,IJ00088976,1140.00,Vodafone Ltd Corporate
East Lindsey District Council,http://statistics.data.gov.uk/id/local-authority/32UC,Waste Services Manager,Telephones,16/03/2021,IJ00089270,247.09,Vodafone Ltd Corporate
East Lindsey District Council,http://statistics.data.gov.uk/id/local-authority/32UC,Planning,Telephones,16/03/2021,IJ00089270,127.50,Vodafone Ltd Corporate
East Lindsey District Council,http://statistics.data.gov.uk/id/local-authority/32UC,Enforcement Team Leader,Telephones,16/03/2021,IJ00089270,51.00,Vodafone Ltd Corporate
East Lindsey District Council,http://statistics.data.gov.uk/id/local-authority/32UC,Enforcement Team Leader,Telephones,16/03/2021,IJ00089270,17.15,Vodafone Ltd Corporate
East Lindsey District Council,http://statistics.data.gov.uk/id/local-authority/32UC,Building Control,Telephones,16/03/2021,IJ00089270,8.50,Vodafone Ltd Corporate
East Lindsey District Council,http://statistics.data.gov.uk/id/local-authority/32UC,Hsg Advice & Homelessness TL,Telephones,16/03/2021,IJ00089270,132.50,Vodafone Ltd Corporate
East Lindsey District Council,http://statistics.data.gov.uk/id/local-authority/32UC,Hsg Advice & Homelessness TL,Telephones,16/03/2021,IJ00089270,8.50,Vodafone Ltd Corporate
East Lindsey District Council,http://statistics.data.gov.uk/id/local-authority/32UC,Hsg Advice & Homelessness TL,Telephones,16/03/2021,IJ00089270,56.50,Vodafone Ltd Corporate
East Lindsey District Council,http://statistics.data.gov.uk/id/local-authority/32UC,Waste Services Manager,Telephones,16/03/2021,IJ00089270,22.80,Vodafone Ltd Corporate
East Lindsey District Council,http://statistics.data.gov.uk/id/local-authority/32UC,Building Control,Telephones,16/03/2021,IJ00089270,85.00,Vodafone Ltd Corporate
East Lindsey District Council,http://statistics.data.gov.uk/id/local-authority/32UC,Corporate Management,Telephones,16/03/2021,IJ00089270,109.83,Vodafone Ltd Corporate
East Lindsey District Council,http://statistics.data.gov.uk/id/local-authority/32UC,Neighbourhood Services,Telephones,16/03/2021,IJ00089270,160.00,Vodafone Ltd Corporate
East Lindsey District Council,http://statistics.data.gov.uk/id/local-authority/32UC,Neighbourhood Services,Telephones,16/03/2021,IJ00089270,19.50,Vodafone Ltd Corporate
East Lindsey District Council,http://statistics.data.gov.uk/id/local-authority/32UC,TL Property,Telephones,16/03/2021,IJ00089270,51.00,Vodafone Ltd Corporate
East Lindsey District Council,http://statistics.data.gov.uk/id/local-authority/32UC,"Performance, Governance & Commissioning",Telephones,16/03/2021,IJ00089270,25.50,Vodafone Ltd Corporate
East Lindsey District Council,http://statistics.data.gov.uk/id/local-authority/32UC,"Performance, Governance & Commissioning",Telephones,16/03/2021,IJ00089270,8.50,Vodafone Ltd Corporate
East Lindsey District Council,http://statistics.data.gov.uk/id/local-authority/32UC,Planning Policy,Telephones,16/03/2021,IJ00089270,25.50,Vodafone Ltd Corporate
East Lindsey District Council,http://statistics.data.gov.uk/id/local-authority/32UC,Neighbourhood Services,Telephones,16/03/2021,IJ00089270,8.50,Vodafone Ltd Corporate
East Lindsey District Council,http://statistics.data.gov.uk/id/local-authority/32UC,Neighbourhood Services,Telephones,16/03/2021,IJ00089270,149.00,Vodafone Ltd Corporate
East Lindsey District Council,http://statistics.data.gov.uk/id/local-authority/32UC,Hsg Advice & Homelessness TL,Telephones,16/03/2021,IJ00089270,8.50,Vodafone Ltd Corporate
East Lindsey District Council,http://statistics.data.gov.uk/id/local-authority/32UC,Hsg Advice & Homelessness TL,Telephones,16/03/2021,IJ00089270,8.90,Vodafone Ltd Corporate
East Lindsey District Council,http://statistics.data.gov.uk/id/local-authority/32UC,"Performance, Governance & Commissioning",Telephones,16/03/2021,IJ00089270,8.50,Vodafone Ltd Corporate
East Lindsey District Council,http://statistics.data.gov.uk/id/local-authority/32UC,TL Property,Telephones,16/03/2021,IJ00089270,102.00,Vodafone Ltd Corporate
East Lindsey District Council,http://statistics.data.gov.uk/id/local-authority/32UC,"Performance, Governance & Commissioning",Telephones,16/03/2021,IJ00089270,88.00,Vodafone Ltd Corporate
East Lindsey District Council,http://statistics.data.gov.uk/id/local-authority/32UC,Hsg Advice & Homelessness TL,Telephones,16/03/2021,IJ00089270,8.50,Vodafone Ltd Corporate
East Lindsey District Council,http://statistics.data.gov.uk/id/local-authority/32UC,TL Property,Telephones,16/03/2021,IJ00089270,8.50,Vodafone Ltd Corporate
East Lindsey District Council,http://statistics.data.gov.uk/id/local-authority/32UC,Waste Services Manager,Telephones,16/03/2021,IJ00089270,5.49,Vodafone Ltd Corporate
East Lindsey District Council,http://statistics.data.gov.uk/id/local-authority/32UC,Growth Relationships & Growth Promotions,Telephones,16/03/2021,IJ00089270,31.00,Vodafone Ltd Corporate
East Lindsey District Council,http://statistics.data.gov.uk/id/local-authority/32UC,TL Property,Telephones,16/03/2021,IJ00089270,8.50,Vodafone Ltd Corporate
East Lindsey District Council,http://statistics.data.gov.uk/id/local-authority/32UC,TL Property,Telephones,16/03/2021,IJ00089270,22.00,Vodafone Ltd Corporate
East Lindsey District Council,http://statistics.data.gov.uk/id/local-authority/32UC,TL Property,Telephones,16/03/2021,IJ00089270,963.17,Vodafone Ltd Corporate
East Lindsey District Council,http://statistics.data.gov.uk/id/local-authority/32UC,Public Protection,Telephones,16/03/2021,IJ00089270,8.50,Vodafone Ltd Corporate
East Lindsey District Council,http://statistics.data.gov.uk/id/local-authority/32UC,Hsg Advice & Homelessness TL,Telephones,16/03/2021,IJ00089270,25.83,Vodafone Ltd Corporate
East Lindsey District Council,http://statistics.data.gov.uk/id/local-authority/32UC,Growth Relationships & Growth Promotions,Telephones,16/03/2021,IJ00089270,17.81,Vodafone Ltd Corporate
East Lindsey District Council,http://statistics.data.gov.uk/id/local-authority/32UC,Growth Relationships & Growth Promotions,Telephones,16/03/2021,IJ00089270,66.79,Vodafone Ltd Corporate
East Lindsey District Council,http://statistics.data.gov.uk/id/local-authority/32UC,Audit Manager,Telephones,16/03/2021,IJ00089270,8.50,Vodafone Ltd Corporate
East Lindsey District Council,http://statistics.data.gov.uk/id/local-authority/32UC,Hsg Advice & Homelessness TL,Telephones,16/03/2021,IJ00089270,280.49,Vodafone Ltd Corporate
East Lindsey District Council,http://statistics.data.gov.uk/id/local-authority/32UC,Hsg Advice & Homelessness TL,Telephones,16/03/2021,IJ00089270,8.50,Vodafone Ltd Corporate
East Lindsey District Council,http://statistics.data.gov.uk/id/local-authority/32UC,Hsg Advice & Homelessness TL,Telephones,16/03/2021,IJ00089270,20.07,Vodafone Ltd Corporate
East Lindsey District Council,http://statistics.data.gov.uk/id/local-authority/32UC,Hsg Advice & Homelessness TL,Telephones,16/03/2021,IJ00089270,51.00,Vodafone Ltd Corporate
East Lindsey District Council,http://statistics.data.gov.uk/id/local-authority/32UC,Hsg Advice & Homelessness TL,Telephones,16/03/2021,IJ00089270,73.45,Vodafone Ltd Corporate
East Lindsey District Council,http://statistics.data.gov.uk/id/local-authority/32UC,Organisational Improvement & Development,Telephones,16/03/2021,IJ00089270,8.50,Vodafone Ltd Corporate
East Lindsey District Council,http://statistics.data.gov.uk/id/local-authority/32UC,Organisational Improvement & Development,Telephones,16/03/2021,IJ00089270,25.50,Vodafone Ltd Corporate
East Lindsey District Council,http://statistics.data.gov.uk/id/local-authority/32UC,Organisational Improvement & Development,Telephones,16/03/2021,IJ00089270,32.99,Vodafone Ltd Corporate
East Lindsey District Council,http://statistics.data.gov.uk/id/local-authority/32UC,Hsg Advice & Homelessness TL,Telephones,16/03/2021,IJ00089270,34.30,Vodafone Ltd Corporate
East Lindsey District Council,http://statistics.data.gov.uk/id/local-authority/32UC,Public Protection,Telephones,16/03/2021,IJ00089270,8.50,Vodafone Ltd Corporate
East Lindsey District Council,http://statistics.data.gov.uk/id/local-authority/32UC,Corporate Accounting,Telephones,16/03/2021,IJ00089270,8.50,Vodafone Ltd Corporate
East Lindsey District Council,http://statistics.data.gov.uk/id/local-authority/32UC,TL Property,Telephones,16/03/2021,IJ00089270,8.50,Vodafone Ltd Corporate
East Lindsey District Council,http://statistics.data.gov.uk/id/local-authority/32UC,Hsg Advice & Homelessness TL,Telephones,16/03/2021,IJ00089270,8.83,Vodafone Ltd Corporate
East Lindsey District Council,http://statistics.data.gov.uk/id/local-authority/32UC,TL Property,Telephones,16/03/2021,IJ00089270,5.50,Vodafone Ltd Corporate
East Lindsey District Council,http://statistics.data.gov.uk/id/local-authority/32UC,Public Protection,Telephones,16/03/2021,IJ00089270,34.00,Vodafone Ltd Corporate
East Lindsey District Council,http://statistics.data.gov.uk/id/local-authority/32UC,Public Protection,Telephones,16/03/2021,IJ00089270,9.34,Vodafone Ltd Corporate
East Lindsey District Council,http://statistics.data.gov.uk/id/local-authority/32UC,Environmental Health,Telephones,16/03/2021,IJ00089270,25.50,Vodafone Ltd Corporate
East Lindsey District Council,http://statistics.data.gov.uk/id/local-authority/32UC,Environmental Health,Telephones,16/03/2021,IJ00089270,17.00,Vodafone Ltd Corporate
East Lindsey District Council,http://statistics.data.gov.uk/id/local-authority/32UC,Environmental Health,Telephones,16/03/2021,IJ00089270,153.00,Vodafone Ltd Corporate
East Lindsey District Council,http://statistics.data.gov.uk/id/local-authority/32UC,Environmental Health,Telephones,16/03/2021,IJ00089270,34.00,Vodafone Ltd Corporate
East Lindsey District Council,http://statistics.data.gov.uk/id/local-authority/32UC,Neighbourhood Services,Computer Hardware Maintenance,16/03/2021,IJ00089270,9.56,Vodafone Ltd Corporate
East Lindsey District Council,http://statistics.data.gov.uk/id/local-authority/32UC,Corporate Accounting,Postages,04/03/2021,IJ00088977,333.00,Royal Mail Group Ltd
East Lindsey District Council,http://statistics.data.gov.uk/id/local-authority/32UC,Waste Services Manager,Other Private Contractors,04/03/2021,IJ00088989,1124.97,Glass Recycling UK Ltd
East Lindsey District Council,http://statistics.data.gov.uk/id/local-authority/32UC,Planning Policy,Other Private Contractors,04/03/2021,IJ00088994,4259.73,LINCOLNSHIRE WILDLIFE TRUST
East Lindsey District Council,http://statistics.data.gov.uk/id/local-authority/32UC,Collection Fund,Precept- Lincolnshire County Council,04/03/2021,IJ00089027,6082056.67,LINCOLNSHIRE COUNTY COUNCIL
East Lindsey District Council,http://statistics.data.gov.uk/id/local-authority/32UC,Collection Fund,Share of NDR Income - Lincolnshire,04/03/2021,IJ00089027,414115.90,LINCOLNSHIRE COUNTY COUNCIL
East Lindsey District Council,http://statistics.data.gov.uk/id/local-authority/32UC,Corporate Management,Lincolnshire Legal Services,11/03/2021,IJ00089043,24.00,LINCOLNSHIRE COUNTY COUNCIL
East Lindsey District Council,http://statistics.data.gov.uk/id/local-authority/32UC,Corporate Management,Lincolnshire Legal Services,11/03/2021,IJ00089043,12984.71,LINCOLNSHIRE COUNTY COUNCIL
East Lindsey District Council,http://statistics.data.gov.uk/id/local-authority/32UC,Waste Services Manager,Premises Lease Payments (More than 12 months),11/03/2021,IJ00089162,5312.50,LINCOLNSHIRE COUNTY COUNCIL
East Lindsey District Council,http://statistics.data.gov.uk/id/local-authority/32UC,Audit Manager,Professional & Contractors Fees,16/03/2021,IJ00089264,13865.00,LINCOLNSHIRE COUNTY COUNCIL
East Lindsey District Council,http://statistics.data.gov.uk/id/local-authority/32UC,Public Protection,Other Private Contractors,11/03/2021,IJ00089063,272.00,EJ Parker Technical Services (Louth) Ltd
East Lindsey District Council,http://statistics.data.gov.uk/id/local-authority/32UC,Hsg Advice & Homelessness TL,Electricity,04/03/2021,IJ00088934,598.21,Southern Electric
East Lindsey District Council,http://statistics.data.gov.uk/id/local-authority/32UC,Hsg Advice & Homelessness TL,Electricity,04/03/2021,IJ00088935,417.50,Southern Electric
East Lindsey District Council,http://statistics.data.gov.uk/id/local-authority/32UC,Hsg Advice & Homelessness TL,Gas,04/03/2021,IJ00088936,399.78,Southern Electric
East Lindsey District Council,http://statistics.data.gov.uk/id/local-authority/32UC,TL Property,Payments to Bodies in Respect of Income Collected,11/03/2021,IJ00089119,6359.29,Tesco Stores Ltd
East Lindsey District Council,http://statistics.data.gov.uk/id/local-authority/32UC,Revenues & Benefits,Other Miscellaneous Expenses,11/03/2021,IJ00089137,1220.32,Allpay Ltd
East Lindsey District Council,http://statistics.data.gov.uk/id/local-authority/32UC,Revenues & Benefits,Other Miscellaneous Expenses,11/03/2021,IJ00089137,46.72,Allpay Ltd
East Lindsey District Council,http://statistics.data.gov.uk/id/local-authority/32UC,Revenues & Benefits,Other Miscellaneous Expenses,16/03/2021,IJ00089253,524.83,Allpay Ltd
East Lindsey District Council,http://statistics.data.gov.uk/id/local-authority/32UC,Revenues & Benefits,Other Miscellaneous Expenses,16/03/2021,IJ00089253,20.09,Allpay Ltd
East Lindsey District Council,http://statistics.data.gov.uk/id/local-authority/32UC,"Performance, Governance & Commissioning",Subscriptions to Organisations and Other Bodies,16/03/2021,IJ00089263,1485.00,LEXISNEXIS UK
East Lindsey District Council,http://statistics.data.gov.uk/id/local-authority/32UC,Environmental Health,Clothing Uniforms And Laundry,11/03/2021,IJ00089064,939.00,Campbell Associates Ltd
East Lindsey District Council,http://statistics.data.gov.uk/id/local-authority/32UC,Corporate Management,Postages,04/03/2021,IJ00088975,9000.00,Quadient UK Ltd
East Lindsey District Council,http://statistics.data.gov.uk/id/local-authority/32UC,BALANCE  SHEET,VAT Customs and Excise,11/03/2021,IJ00089092,250.09,Jacobs
East Lindsey District Council,http://statistics.data.gov.uk/id/local-authority/32UC,BALANCE  SHEET,VAT Customs and Excise,16/03/2021,IJ00089188,381.19,Jacobs
East Lindsey District Council,http://statistics.data.gov.uk/id/local-authority/32UC,BALANCE  SHEET,Payroll Sacrifice Nursery Voucher,11/03/2021,IJ00089141,300.00,Sodexo
East Lindsey District Council,http://statistics.data.gov.uk/id/local-authority/32UC,TL Property,Computer Software Licence Costs,04/03/2021,IJ00089010,396.00,Metric Group Ltd
East Lindsey District Council,http://statistics.data.gov.uk/id/local-authority/32UC,Information Technology,Computer Software Licence Costs,16/03/2021,IJ00089243,9322.20,Phoenix Software Ltd
East Lindsey District Council,http://statistics.data.gov.uk/id/local-authority/32UC,Information Technology,Computer Software Licence Costs,16/03/2021,IJ00089244,52884.60,Phoenix Software Ltd
East Lindsey District Council,http://statistics.data.gov.uk/id/local-authority/32UC,Information Technology,Professional & Contractors Fees,16/03/2021,IJ00089245,30878.64,Phoenix Software Ltd
East Lindsey District Council,http://statistics.data.gov.uk/id/local-authority/32UC,Information Technology,Computer Software Licence Costs,16/03/2021,IJ00089259,100897.92,Phoenix Software Ltd
East Lindsey District Council,http://statistics.data.gov.uk/id/local-authority/32UC,Environmental Health,Professional & Contractors Fees,04/03/2021,IJ00089033,285.00,Ajet Drain Services Ltd
East Lindsey District Council,http://statistics.data.gov.uk/id/local-authority/32UC,TL Property,Buildings Maintenance - Responsive,16/03/2021,IJ00089210,760.00,Ajet Drain Services Ltd
East Lindsey District Council,http://statistics.data.gov.uk/id/local-authority/32UC,TL Property,Gas,16/03/2021,IJ00089248,23.09,Eastern Shires Purchasing Organisation
East Lindsey District Council,http://statistics.data.gov.uk/id/local-authority/32UC,TL Property,Gas,16/03/2021,IJ00089248,2404.23,Eastern Shires Purchasing Organisation
East Lindsey District Council,http://statistics.data.gov.uk/id/local-authority/32UC,TL Property,Gas,16/03/2021,IJ00089248,3867.87,Eastern Shires Purchasing Organisation
East Lindsey District Council,http://statistics.data.gov.uk/id/local-authority/32UC,TL Property,Gas,16/03/2021,IJ00089248,553.69,Eastern Shires Purchasing Organisation
East Lindsey District Council,http://statistics.data.gov.uk/id/local-authority/32UC,TL Property,Gas,16/03/2021,IJ00089248,72.69,Eastern Shires Purchasing Organisation
East Lindsey District Council,http://statistics.data.gov.uk/id/local-authority/32UC,Growth Relationships & Growth Promotions,Gas,16/03/2021,IJ00089248,489.86,Eastern Shires Purchasing Organisation
East Lindsey District Council,http://statistics.data.gov.uk/id/local-authority/32UC,Growth Relationships & Growth Promotions,Gas,16/03/2021,IJ00089248,277.83,Eastern Shires Purchasing Organisation
East Lindsey District Council,http://statistics.data.gov.uk/id/local-authority/32UC,TL Property,Gas,16/03/2021,IJ00089248,57.81,Eastern Shires Purchasing Organisation
East Lindsey District Council,http://statistics.data.gov.uk/id/local-authority/32UC,"Performance, Governance & Commissioning",Staff Training Expenses,11/03/2021,IJ00089120,345.00,GOVNET COMMUNICATIONS
East Lindsey District Council,http://statistics.data.gov.uk/id/local-authority/32UC,Growth Relationships & Growth Promotions,Advertising - Events,16/03/2021,IJ00089269,800.00,County Life Ltd
East Lindsey District Council,http://statistics.data.gov.uk/id/local-authority/32UC,Hsg Advice & Homelessness TL,Staff Training Expenses,04/03/2021,IJ00088961,440.00,SHELTER
East Lindsey District Council,http://statistics.data.gov.uk/id/local-authority/32UC,TL Property,Professional & Contractors Fees,04/03/2021,IJ00088978,980.00,M.A.P Security Solutions Ltd
East Lindsey District Council,http://statistics.data.gov.uk/id/local-authority/32UC,Capital WIP,Works to Buildings (Main Contractor),16/03/2021,IJ00089192,8913.49,J.H.A Winter & Sons Ltd
East Lindsey District Council,http://statistics.data.gov.uk/id/local-authority/32UC,TL Property,Electricity,04/03/2021,IJ00088984,212.95,Siemens
East Lindsey District Council,http://statistics.data.gov.uk/id/local-authority/32UC,TL Property,Electricity,04/03/2021,IJ00088984,212.95,Siemens
East Lindsey District Council,http://statistics.data.gov.uk/id/local-authority/32UC,Growth Relationships & Growth Promotions,Electricity,04/03/2021,IJ00088984,166.80,Siemens
East Lindsey District Council,http://statistics.data.gov.uk/id/local-authority/32UC,TL Property,Computer Hardware Maintenance,11/03/2021,IJ00089126,1257.00,Flowbird Smart City UK Ltd
East Lindsey District Council,http://statistics.data.gov.uk/id/local-authority/32UC,TL Property,Furniture and Equipment,11/03/2021,IJ00089147,539.00,Flowbird Smart City UK Ltd
East Lindsey District Council,http://statistics.data.gov.uk/id/local-authority/32UC,Hsg Advice & Homelessness TL,Grants and Contributions- Where a Service is Received,04/03/2021,IJ00088944,15000.00,Platform Housing Limited
East Lindsey District Council,http://statistics.data.gov.uk/id/local-authority/32UC,Building Control,Buildings Maintenance - Responsive,04/03/2021,IJ00088958,122.50,Gelder Ltd
East Lindsey District Council,http://statistics.data.gov.uk/id/local-authority/32UC,Theatre Manager,Buildings Maintenance - Responsive,04/03/2021,IJ00088958,1796.67,Gelder Ltd
East Lindsey District Council,http://statistics.data.gov.uk/id/local-authority/32UC,TL Property,Buildings Maintenance - Responsive,04/03/2021,IJ00088958,117.43,Gelder Ltd
East Lindsey District Council,http://statistics.data.gov.uk/id/local-authority/32UC,Leisure Operations,Buildings Maintenance - Responsive,04/03/2021,IJ00088958,272.56,Gelder Ltd
East Lindsey District Council,http://statistics.data.gov.uk/id/local-authority/32UC,Neighbourhood Services,Buildings Maintenance - Responsive,04/03/2021,IJ00088958,597.63,Gelder Ltd
East Lindsey District Council,http://statistics.data.gov.uk/id/local-authority/32UC,Theatre Manager,Buildings Maintenance - Responsive,04/03/2021,IJ00088958,34.50,Gelder Ltd
East Lindsey District Council,http://statistics.data.gov.uk/id/local-authority/32UC,TL Property,Buildings Maintenance - Responsive,04/03/2021,IJ00088958,171.50,Gelder Ltd
East Lindsey District Council,http://statistics.data.gov.uk/id/local-authority/32UC,TL Property,Buildings Maintenance - Responsive,04/03/2021,IJ00088958,820.16,Gelder Ltd
East Lindsey District Council,http://statistics.data.gov.uk/id/local-authority/32UC,Leisure Operations,Buildings Maintenance - Responsive,04/03/2021,IJ00088958,122.50,Gelder Ltd
East Lindsey District Council,http://statistics.data.gov.uk/id/local-authority/32UC,TL Property,Buildings Maintenance - Programmed,04/03/2021,IJ00088958,698.25,Gelder Ltd
East Lindsey District Council,http://statistics.data.gov.uk/id/local-authority/32UC,Leisure Operations,Buildings Maintenance - Responsive,04/03/2021,IJ00088958,1099.25,Gelder Ltd
East Lindsey District Council,http://statistics.data.gov.uk/id/local-authority/32UC,TL Property,Buildings Maintenance - Responsive,04/03/2021,IJ00088958,98.00,Gelder Ltd
East Lindsey District Council,http://statistics.data.gov.uk/id/local-authority/32UC,TL Property,Buildings Maintenance - Responsive,04/03/2021,IJ00088958,2182.85,Gelder Ltd
East Lindsey District Council,http://statistics.data.gov.uk/id/local-authority/32UC,Leisure Operations,Buildings Maintenance - Programmed,04/03/2021,IJ00088958,1814.71,Gelder Ltd
East Lindsey District Council,http://statistics.data.gov.uk/id/local-authority/32UC,TL Property,Buildings Maintenance - Programmed,04/03/2021,IJ00088958,241.50,Gelder Ltd
East Lindsey District Council,http://statistics.data.gov.uk/id/local-authority/32UC,Leisure Operations,Buildings Maintenance - Responsive,04/03/2021,IJ00088958,122.50,Gelder Ltd
East Lindsey District Council,http://statistics.data.gov.uk/id/local-authority/32UC,TL Property,Buildings Maintenance - Responsive,04/03/2021,IJ00088958,72.47,Gelder Ltd
East Lindsey District Council,http://statistics.data.gov.uk/id/local-authority/32UC,TL Property,Buildings Maintenance - Responsive,04/03/2021,IJ00088958,147.49,Gelder Ltd
East Lindsey District Council,http://statistics.data.gov.uk/id/local-authority/32UC,TL Property,Buildings Maintenance - Responsive,04/03/2021,IJ00088958,281.75,Gelder Ltd
East Lindsey District Council,http://statistics.data.gov.uk/id/local-authority/32UC,Neighbourhood Services,Buildings Maintenance - Responsive,04/03/2021,IJ00088958,122.50,Gelder Ltd
East Lindsey District Council,http://statistics.data.gov.uk/id/local-authority/32UC,Neighbourhood Services,Buildings Maintenance - Responsive,04/03/2021,IJ00088958,328.09,Gelder Ltd
East Lindsey District Council,http://statistics.data.gov.uk/id/local-authority/32UC,TL Property,Buildings Maintenance - Responsive,04/03/2021,IJ00088958,73.50,Gelder Ltd
East Lindsey District Council,http://statistics.data.gov.uk/id/local-authority/32UC,TL Property,Buildings Maintenance - Responsive,04/03/2021,IJ00088958,133.21,Gelder Ltd
East Lindsey District Council,http://statistics.data.gov.uk/id/local-authority/32UC,TL Property,Buildings Maintenance - Responsive,04/03/2021,IJ00088958,268.10,Gelder Ltd
East Lindsey District Council,http://statistics.data.gov.uk/id/local-authority/32UC,TL Property,Buildings Maintenance - Responsive,04/03/2021,IJ00088958,93.76,Gelder Ltd
East Lindsey District Council,http://statistics.data.gov.uk/id/local-authority/32UC,TL Property,Buildings Maintenance - Responsive,04/03/2021,IJ00088958,36.75,Gelder Ltd
East Lindsey District Council,http://statistics.data.gov.uk/id/local-authority/32UC,Growth Relationships & Growth Promotions,Buildings Maintenance - Responsive,04/03/2021,IJ00088958,215.25,Gelder Ltd
East Lindsey District Council,http://statistics.data.gov.uk/id/local-authority/32UC,TL Property,Buildings Maintenance - Responsive,04/03/2021,IJ00088958,575.62,Gelder Ltd
East Lindsey District Council,http://statistics.data.gov.uk/id/local-authority/32UC,TL Property,Buildings Maintenance - Responsive,04/03/2021,IJ00088958,36.75,Gelder Ltd
East Lindsey District Council,http://statistics.data.gov.uk/id/local-authority/32UC,TL Property,Buildings Maintenance - Programmed,04/03/2021,IJ00088958,172.50,Gelder Ltd
East Lindsey District Council,http://statistics.data.gov.uk/id/local-authority/32UC,Corporate Management,Banking Charges,16/03/2021,IJ00089251,152.78,Capita Business Services Ltd
East Lindsey District Council,http://statistics.data.gov.uk/id/local-authority/32UC,Corporate Management,Banking Charges,16/03/2021,IJ00089251,1861.65,Capita Business Services Ltd
East Lindsey District Council,http://statistics.data.gov.uk/id/local-authority/32UC,Corporate Accounting,Banking Charges,16/03/2021,IJ00089251,7084.85,Capita Business Services Ltd
East Lindsey District Council,http://statistics.data.gov.uk/id/local-authority/32UC,TL Property,Agency Staff,04/03/2021,IJ00088953,254.20,The Workshop (Wisbech) Ltd
East Lindsey District Council,http://statistics.data.gov.uk/id/local-authority/32UC,Neighbourhood Services,Agency Staff,04/03/2021,IJ00088967,1439.64,The Workshop (Wisbech) Ltd
East Lindsey District Council,http://statistics.data.gov.uk/id/local-authority/32UC,Neighbourhood Services,Agency Staff,04/03/2021,IJ00088967,3192.54,The Workshop (Wisbech) Ltd
East Lindsey District Council,http://statistics.data.gov.uk/id/local-authority/32UC,TL Property,Agency Staff,04/03/2021,IJ00089018,892.80,The Workshop (Wisbech) Ltd
East Lindsey District Council,http://statistics.data.gov.uk/id/local-authority/32UC,Neighbourhood Services,Agency Staff,11/03/2021,IJ00089065,1499.63,The Workshop (Wisbech) Ltd
East Lindsey District Council,http://statistics.data.gov.uk/id/local-authority/32UC,Neighbourhood Services,Agency Staff,11/03/2021,IJ00089065,3305.84,The Workshop (Wisbech) Ltd
East Lindsey District Council,http://statistics.data.gov.uk/id/local-authority/32UC,TL Property,Agency Staff,11/03/2021,IJ00089042,1413.60,The Workshop (Wisbech) Ltd
East Lindsey District Council,http://statistics.data.gov.uk/id/local-authority/32UC,Neighbourhood Services,Agency Staff,11/03/2021,IJ00089109,1586.27,The Workshop (Wisbech) Ltd
East Lindsey District Council,http://statistics.data.gov.uk/id/local-authority/32UC,Neighbourhood Services,Agency Staff,11/03/2021,IJ00089109,3012.58,The Workshop (Wisbech) Ltd
East Lindsey District Council,http://statistics.data.gov.uk/id/local-authority/32UC,TL Property,Buildings Maintenance - Programmed,16/03/2021,IJ00089224,300.00,Airco Refrigeration & Air Conditioning Ltd
East Lindsey District Council,http://statistics.data.gov.uk/id/local-authority/32UC,Information Technology,Computer Software Licence Costs,11/03/2021,IJ00089165,9139.65,Idox
East Lindsey District Council,http://statistics.data.gov.uk/id/local-authority/32UC,Information Technology,Computer Software Licence Costs,16/03/2021,IJ00089262,20462.63,Idox
East Lindsey District Council,http://statistics.data.gov.uk/id/local-authority/32UC,Organisational Improvement & Development,Public Sector Partnership Services,04/03/2021,IJ00089023,445956.75,Public Sector Partnership Services Ltd
East Lindsey District Council,http://statistics.data.gov.uk/id/local-authority/32UC,Corporate Management,PSPS Non Base Contract Costs,04/03/2021,IJ00089014,5520.00,Public Sector Partnership Services Ltd
East Lindsey District Council,http://statistics.data.gov.uk/id/local-authority/32UC,Corporate Accounting,Professional & Contractors Fees,04/03/2021,IJ00089013,12780.00,Public Sector Partnership Services Ltd
East Lindsey District Council,http://statistics.data.gov.uk/id/local-authority/32UC,Information Technology,Computer Software Licence Costs,04/03/2021,IJ00089011,2125.00,Public Sector Partnership Services Ltd
East Lindsey District Council,http://statistics.data.gov.uk/id/local-authority/32UC,Information Technology,Computer Software Licence Costs,04/03/2021,IJ00089011,4411.58,Public Sector Partnership Services Ltd
East Lindsey District Council,http://statistics.data.gov.uk/id/local-authority/32UC,Corporate Management,Professional & Contractors Fees,04/03/2021,IJ00089011,25.00,Public Sector Partnership Services Ltd
East Lindsey District Council,http://statistics.data.gov.uk/id/local-authority/32UC,"Performance, Governance & Commissioning",Postages,04/03/2021,IJ00089011,795.14,Public Sector Partnership Services Ltd
East Lindsey District Council,http://statistics.data.gov.uk/id/local-authority/32UC,Corporate Management,Other Employee Expenses,04/03/2021,IJ00089011,300.00,Public Sector Partnership Services Ltd
East Lindsey District Council,http://statistics.data.gov.uk/id/local-authority/32UC,Revenues & Benefits,Public Sector Partnership Services,11/03/2021,IJ00089125,30028.00,Public Sector Partnership Services Ltd
East Lindsey District Council,http://statistics.data.gov.uk/id/local-authority/32UC,Information Technology,External Printing and Design Costs,11/03/2021,IJ00089118,718.67,Public Sector Partnership Services Ltd
East Lindsey District Council,http://statistics.data.gov.uk/id/local-authority/32UC,Information Technology,External Printing and Design Costs,11/03/2021,IJ00089107,6010.14,Public Sector Partnership Services Ltd
East Lindsey District Council,http://statistics.data.gov.uk/id/local-authority/32UC,Corporate Management,PSPS Non Base Contract Costs,11/03/2021,IJ00089143,759.50,Public Sector Partnership Services Ltd
East Lindsey District Council,http://statistics.data.gov.uk/id/local-authority/32UC,Revenues & Benefits,PSPS Non Base Contract Costs,16/03/2021,IJ00089181,21670.00,Public Sector Partnership Services Ltd
East Lindsey District Council,http://statistics.data.gov.uk/id/local-authority/32UC,Hsg Advice & Homelessness TL,Fees and Charges General,16/03/2021,IJ00089268,169864.62,Public Sector Partnership Services Ltd
East Lindsey District Council,http://statistics.data.gov.uk/id/local-authority/32UC,Waste Services Manager,PSPS Non Base Contract Costs,16/03/2021,IJ00089272,17202.00,Public Sector Partnership Services Ltd
East Lindsey District Council,http://statistics.data.gov.uk/id/local-authority/32UC,Hsg Advice & Homelessness TL,Rent Payments,16/03/2021,IJ00089282,487.95,Salvation Army
East Lindsey District Council,http://statistics.data.gov.uk/id/local-authority/32UC,Hsg Advice & Homelessness TL,Rent Payments,16/03/2021,IJ00089283,1322.15,Salvation Army
East Lindsey District Council,http://statistics.data.gov.uk/id/local-authority/32UC,Hsg Advice & Homelessness TL,Rent Payments,16/03/2021,IJ00089287,542.66,Salvation Army
East Lindsey District Council,http://statistics.data.gov.uk/id/local-authority/32UC,TL Property,Other Private Contractors,11/03/2021,IJ00089158,3337.75,JOHN PEBERDY PARTNERSHIP
East Lindsey District Council,http://statistics.data.gov.uk/id/local-authority/32UC,TL Property,Buildings Maintenance - Programmed,11/03/2021,IJ00089148,260.75,Charles Hill Ltd
East Lindsey District Council,http://statistics.data.gov.uk/id/local-authority/32UC,Planning Policy,Other Private Contractors,16/03/2021,IJ00089222,9240.00,OPINION RESEARCH SERVICES LTD
East Lindsey District Council,http://statistics.data.gov.uk/id/local-authority/32UC,Planning,Other Private Contractors,04/03/2021,IJ00088949,9500.00,Rose Regeneration Ltd
East Lindsey District Council,http://statistics.data.gov.uk/id/local-authority/32UC,Growth Relationships & Growth Promotions,Professional & Contractors Fees,16/03/2021,IJ00089206,1500.00,Rose Regeneration Ltd
East Lindsey District Council,http://statistics.data.gov.uk/id/local-authority/32UC,TL Property,Professional & Contractors Fees,04/03/2021,IJ00088970,1865.48,Kings Armoured Security Services Ltd
East Lindsey District Council,http://statistics.data.gov.uk/id/local-authority/32UC,Waste Services Manager,Telephones,04/03/2021,IJ00088971,9.48,Daisy Corporate Services Trading Limited
East Lindsey District Council,http://statistics.data.gov.uk/id/local-authority/32UC,Theatre Manager,Telephones,04/03/2021,IJ00088971,18.97,Daisy Corporate Services Trading Limited
East Lindsey District Council,http://statistics.data.gov.uk/id/local-authority/32UC,Building Control,Telephones,04/03/2021,IJ00088971,36.41,Daisy Corporate Services Trading Limited
East Lindsey District Council,http://statistics.data.gov.uk/id/local-authority/32UC,Corporate Management,Telephones,04/03/2021,IJ00088971,1144.63,Daisy Corporate Services Trading Limited
East Lindsey District Council,http://statistics.data.gov.uk/id/local-authority/32UC,Information Technology,Telephones,04/03/2021,IJ00088971,18.96,Daisy Corporate Services Trading Limited
East Lindsey District Council,http://statistics.data.gov.uk/id/local-authority/32UC,Leisure Operations,Telephones,04/03/2021,IJ00088971,49.35,Daisy Corporate Services Trading Limited
East Lindsey District Council,http://statistics.data.gov.uk/id/local-authority/32UC,Leisure Operations,Telephones,04/03/2021,IJ00088971,38.03,Daisy Corporate Services Trading Limited
East Lindsey District Council,http://statistics.data.gov.uk/id/local-authority/32UC,Leisure Operations,Telephones,04/03/2021,IJ00088971,9.48,Daisy Corporate Services Trading Limited
East Lindsey District Council,http://statistics.data.gov.uk/id/local-authority/32UC,Leisure Operations,Telephones,04/03/2021,IJ00088971,18.96,Daisy Corporate Services Trading Limited
East Lindsey District Council,http://statistics.data.gov.uk/id/local-authority/32UC,Leisure Operations,Telephones,04/03/2021,IJ00088971,9.48,Daisy Corporate Services Trading Limited
East Lindsey District Council,http://statistics.data.gov.uk/id/local-authority/32UC,TL Property,Telephones,04/03/2021,IJ00088971,9.48,Daisy Corporate Services Trading Limited
East Lindsey District Council,http://statistics.data.gov.uk/id/local-authority/32UC,TL Property,Telephones,04/03/2021,IJ00088971,19.81,Daisy Corporate Services Trading Limited
East Lindsey District Council,http://statistics.data.gov.uk/id/local-authority/32UC,TL Property,Telephones,04/03/2021,IJ00088971,9.48,Daisy Corporate Services Trading Limited
East Lindsey District Council,http://statistics.data.gov.uk/id/local-authority/32UC,Leisure Operations,Telephones,04/03/2021,IJ00088971,18.96,Daisy Corporate Services Trading Limited
East Lindsey District Council,http://statistics.data.gov.uk/id/local-authority/32UC,TL Property,Telephones,04/03/2021,IJ00088971,18.96,Daisy Corporate Services Trading Limited
East Lindsey District Council,http://statistics.data.gov.uk/id/local-authority/32UC,Theatre Manager,Telephones,04/03/2021,IJ00088971,9.48,Daisy Corporate Services Trading Limited
East Lindsey District Council,http://statistics.data.gov.uk/id/local-authority/32UC,TL Property,Telephones,04/03/2021,IJ00088971,28.45,Daisy Corporate Services Trading Limited
East Lindsey District Council,http://statistics.data.gov.uk/id/local-authority/32UC,TL Property,Telephones,04/03/2021,IJ00088971,68.42,Daisy Corporate Services Trading Limited
East Lindsey District Council,http://statistics.data.gov.uk/id/local-authority/32UC,Neighbourhood Services,Telephones,04/03/2021,IJ00088971,9.91,Daisy Corporate Services Trading Limited
East Lindsey District Council,http://statistics.data.gov.uk/id/local-authority/32UC,TL Property,Telephones,04/03/2021,IJ00088971,9.48,Daisy Corporate Services Trading Limited
East Lindsey District Council,http://statistics.data.gov.uk/id/local-authority/32UC,Growth Relationships & Growth Promotions,Telephones,04/03/2021,IJ00088971,283.54,Daisy Corporate Services Trading Limited
East Lindsey District Council,http://statistics.data.gov.uk/id/local-authority/32UC,Growth Relationships & Growth Promotions,Telephones,04/03/2021,IJ00088971,252.74,Daisy Corporate Services Trading Limited
East Lindsey District Council,http://statistics.data.gov.uk/id/local-authority/32UC,TL Property,Telephones,04/03/2021,IJ00088971,9.48,Daisy Corporate Services Trading Limited
East Lindsey District Council,http://statistics.data.gov.uk/id/local-authority/32UC,TL Property,Telephones,04/03/2021,IJ00088971,45.46,Daisy Corporate Services Trading Limited
East Lindsey District Council,http://statistics.data.gov.uk/id/local-authority/32UC,Hsg Advice & Homelessness TL,Telephones,04/03/2021,IJ00088971,199.03,Daisy Corporate Services Trading Limited
East Lindsey District Council,http://statistics.data.gov.uk/id/local-authority/32UC,Environmental Health,Other agencies,04/03/2021,IJ00088971,33.06,Daisy Corporate Services Trading Limited
East Lindsey District Council,http://statistics.data.gov.uk/id/local-authority/32UC,Neighbourhood Services,Maintenance,04/03/2021,IJ00089019,899.61,Probrush Northern Municipal Spares Ltd
East Lindsey District Council,http://statistics.data.gov.uk/id/local-authority/32UC,Neighbourhood Services,Maintenance,11/03/2021,IJ00089080,308.54,Probrush Northern Municipal Spares Ltd
East Lindsey District Council,http://statistics.data.gov.uk/id/local-authority/32UC,Neighbourhood Services,Maintenance,11/03/2021,IJ00089112,294.63,Probrush Northern Municipal Spares Ltd
East Lindsey District Council,http://statistics.data.gov.uk/id/local-authority/32UC,Growth Relationships & Growth Promotions,Other Miscellaneous Expenses,04/03/2021,IJ00088983,2250.00,Root Studio
East Lindsey District Council,http://statistics.data.gov.uk/id/local-authority/32UC,Neighbourhood Services,Clothing Uniforms And Laundry,04/03/2021,IJ00088981,254.43,SMI Int Group
East Lindsey District Council,http://statistics.data.gov.uk/id/local-authority/32UC,Neighbourhood Services,Clothing Uniforms And Laundry,04/03/2021,IJ00089031,498.80,SMI Int Group
East Lindsey District Council,http://statistics.data.gov.uk/id/local-authority/32UC,Neighbourhood Services,Clothing Uniforms And Laundry,11/03/2021,IJ00089049,326.00,SMI Int Group
East Lindsey District Council,http://statistics.data.gov.uk/id/local-authority/32UC,Neighbourhood Services,Clothing Uniforms And Laundry,11/03/2021,IJ00089051,329.70,SMI Int Group
East Lindsey District Council,http://statistics.data.gov.uk/id/local-authority/32UC,Neighbourhood Services,Clothing Uniforms And Laundry,16/03/2021,IJ00089273,411.44,SMI Int Group
East Lindsey District Council,http://statistics.data.gov.uk/id/local-authority/32UC,Information Technology,Computer Software Licence Costs,16/03/2021,IJ00089214,4930.00,RA Information Systems
East Lindsey District Council,http://statistics.data.gov.uk/id/local-authority/32UC,Environmental Health,Other Private Contractors,11/03/2021,IJ00089058,1300.00,Arnold Funeral Service
East Lindsey District Council,http://statistics.data.gov.uk/id/local-authority/32UC,Environmental Health,Other Private Contractors,11/03/2021,IJ00089059,1300.00,Arnold Funeral Service
East Lindsey District Council,http://statistics.data.gov.uk/id/local-authority/32UC,Environmental Health,Other Private Contractors,11/03/2021,IJ00089060,1300.00,Arnold Funeral Service
East Lindsey District Council,http://statistics.data.gov.uk/id/local-authority/32UC,Environmental Health,Other Private Contractors,11/03/2021,IJ00089061,1300.00,Arnold Funeral Service
East Lindsey District Council,http://statistics.data.gov.uk/id/local-authority/32UC,Environmental Health,Other Private Contractors,11/03/2021,IJ00089062,1300.00,Arnold Funeral Service
East Lindsey District Council,http://statistics.data.gov.uk/id/local-authority/32UC,Capital WIP,Works to Buildings (Main Contractor),11/03/2021,IJ00089090,13000.00,The Tractor Shop
East Lindsey District Council,http://statistics.data.gov.uk/id/local-authority/32UC,TL Property,Clothing Uniforms And Laundry,04/03/2021,IJ00088951,369.90,Keltic Clothing
East Lindsey District Council,http://statistics.data.gov.uk/id/local-authority/32UC,TL Property,Rent Payments,16/03/2021,IJ00089261,4468.71,Louth Education Community Interest Company
East Lindsey District Council,http://statistics.data.gov.uk/id/local-authority/32UC,Neighbourhood Services,Agency Staff,04/03/2021,IJ00088968,542.40,Reilyn Limited TA Driver Hire Grimsby and Scunthorpe
East Lindsey District Council,http://statistics.data.gov.uk/id/local-authority/32UC,Waste Services Manager,Agency Staff,04/03/2021,IJ00089015,757.53,Reilyn Limited TA Driver Hire Grimsby and Scunthorpe
East Lindsey District Council,http://statistics.data.gov.uk/id/local-authority/32UC,Neighbourhood Services,Agency Staff,11/03/2021,IJ00089068,610.00,Reilyn Limited TA Driver Hire Grimsby and Scunthorpe
East Lindsey District Council,http://statistics.data.gov.uk/id/local-authority/32UC,Waste Services Manager,Agency Staff,11/03/2021,IJ00089166,639.78,Reilyn Limited TA Driver Hire Grimsby and Scunthorpe
East Lindsey District Council,http://statistics.data.gov.uk/id/local-authority/32UC,Neighbourhood Services,Agency Staff,16/03/2021,IJ00089213,745.80,Reilyn Limited TA Driver Hire Grimsby and Scunthorpe
East Lindsey District Council,http://statistics.data.gov.uk/id/local-authority/32UC,Hsg Advice & Homelessness TL,Professional & Contractors Fees,11/03/2021,IJ00089075,750.00,GF Design Services
East Lindsey District Council,http://statistics.data.gov.uk/id/local-authority/32UC,Hsg Advice & Homelessness TL,Furniture and Equipment,11/03/2021,IJ00089133,1251.28,Solon Security Limited
East Lindsey District Council,http://statistics.data.gov.uk/id/local-authority/32UC,"Performance, Governance & Commissioning",Postages,04/03/2021,IJ00088991,260.25,Civica Election Services
East Lindsey District Council,http://statistics.data.gov.uk/id/local-authority/32UC,"Performance, Governance & Commissioning",External Printing and Design Costs,04/03/2021,IJ00088991,250.83,Civica Election Services
East Lindsey District Council,http://statistics.data.gov.uk/id/local-authority/32UC,Waste Services Manager,Agency Staff,04/03/2021,IJ00089016,5644.90,Red Rock Partnership Ltd
East Lindsey District Council,http://statistics.data.gov.uk/id/local-authority/32UC,Environmental Health,Staff Training Expenses,04/03/2021,IJ00088960,575.00,Nottingham City Council
East Lindsey District Council,http://statistics.data.gov.uk/id/local-authority/32UC,Neighbourhood Services,Grounds Maintenance Contract (External),04/03/2021,IJ00088969,12105.09,Glendale Grounds Management Limited
East Lindsey District Council,http://statistics.data.gov.uk/id/local-authority/32UC,Neighbourhood Services,Grounds Maintenance Contract (External),04/03/2021,IJ00089017,1220.00,Glendale Grounds Management Limited
East Lindsey District Council,http://statistics.data.gov.uk/id/local-authority/32UC,Capital WIP,"Purchase of Plant, Machinery & Equipment",04/03/2021,IJ00089035,33907.75,GO PLANT FLEET SERVICES LTD
East Lindsey District Council,http://statistics.data.gov.uk/id/local-authority/32UC,Capital WIP,Purchase of Vehicles,04/03/2021,IJ00089035,12900.00,GO PLANT FLEET SERVICES LTD
East Lindsey District Council,http://statistics.data.gov.uk/id/local-authority/32UC,Capital WIP,"Purchase of Plant, Machinery & Equipment",11/03/2021,IJ00089171,1200.00,GO PLANT FLEET SERVICES LTD
East Lindsey District Council,http://statistics.data.gov.uk/id/local-authority/32UC,Corporate Management,Staff Training Expenses,11/03/2021,IJ00089124,2002.00,Get Sorted Manufacturing
East Lindsey District Council,http://statistics.data.gov.uk/id/local-authority/32UC,Corporate Management,Staff Training Expenses,16/03/2021,IJ00089271,2827.40,Get Sorted Manufacturing
East Lindsey District Council,http://statistics.data.gov.uk/id/local-authority/32UC,Growth Relationships & Growth Promotions,Other Miscellaneous Expenses,04/03/2021,IJ00088999,300.00,Digicube Ltd
East Lindsey District Council,http://statistics.data.gov.uk/id/local-authority/32UC,Organisational Improvement & Development,Advertising - Events,11/03/2021,IJ00089176,4095.00,NewZapp Destinet Ltd
East Lindsey District Council,http://statistics.data.gov.uk/id/local-authority/32UC,Hsg Advice & Homelessness TL,Buildings Maintenance - Programmed,04/03/2021,IJ00088943,360.00,Waste Away Clearance Service
East Lindsey District Council,http://statistics.data.gov.uk/id/local-authority/32UC,Waste Services Manager,Fuel & Oil,01/03/2021,IJ00088926,16282.00,Pace Fuelcare
East Lindsey District Council,http://statistics.data.gov.uk/id/local-authority/32UC,Waste Services Manager,Fuel & Oil,15/03/2021,IJ00089209,15608.29,Pace Fuelcare
East Lindsey District Council,http://statistics.data.gov.uk/id/local-authority/32UC,Waste Services Manager,Fuel & Oil,15/03/2021,IJ00089212,14924.54,Pace Fuelcare
East Lindsey District Council,http://statistics.data.gov.uk/id/local-authority/32UC,TL Property,Electricity,04/03/2021,IJ00088965,1792.04,Total Gas and Power Limited
East Lindsey District Council,http://statistics.data.gov.uk/id/local-authority/32UC,TL Property,Electricity,04/03/2021,IJ00088965,88.88,Total Gas and Power Limited
East Lindsey District Council,http://statistics.data.gov.uk/id/local-authority/32UC,TL Property,Electricity,04/03/2021,IJ00088965,1691.18,Total Gas and Power Limited
East Lindsey District Council,http://statistics.data.gov.uk/id/local-authority/32UC,TL Property,Electricity,04/03/2021,IJ00088965,38.39,Total Gas and Power Limited
East Lindsey District Council,http://statistics.data.gov.uk/id/local-authority/32UC,TL Property,Electricity,04/03/2021,IJ00088965,220.87,Total Gas and Power Limited
East Lindsey District Council,http://statistics.data.gov.uk/id/local-authority/32UC,TL Property,Electricity,04/03/2021,IJ00088965,44.35,Total Gas and Power Limited
East Lindsey District Council,http://statistics.data.gov.uk/id/local-authority/32UC,TL Property,Electricity,04/03/2021,IJ00088965,17.66,Total Gas and Power Limited
East Lindsey District Council,http://statistics.data.gov.uk/id/local-authority/32UC,TL Property,Electricity,04/03/2021,IJ00088965,58.27,Total Gas and Power Limited
East Lindsey District Council,http://statistics.data.gov.uk/id/local-authority/32UC,TL Property,Electricity,04/03/2021,IJ00088965,62.84,Total Gas and Power Limited
East Lindsey District Council,http://statistics.data.gov.uk/id/local-authority/32UC,TL Property,Electricity,04/03/2021,IJ00088965,30.33,Total Gas and Power Limited
East Lindsey District Council,http://statistics.data.gov.uk/id/local-authority/32UC,TL Property,Electricity,04/03/2021,IJ00088965,83.27,Total Gas and Power Limited
East Lindsey District Council,http://statistics.data.gov.uk/id/local-authority/32UC,TL Property,Electricity,04/03/2021,IJ00088965,17.64,Total Gas and Power Limited
East Lindsey District Council,http://statistics.data.gov.uk/id/local-authority/32UC,TL Property,Electricity,04/03/2021,IJ00088965,20.24,Total Gas and Power Limited
East Lindsey District Council,http://statistics.data.gov.uk/id/local-authority/32UC,TL Property,Electricity,04/03/2021,IJ00088965,61.01,Total Gas and Power Limited
East Lindsey District Council,http://statistics.data.gov.uk/id/local-authority/32UC,TL Property,Electricity,04/03/2021,IJ00088965,27.96,Total Gas and Power Limited
East Lindsey District Council,http://statistics.data.gov.uk/id/local-authority/32UC,TL Property,Electricity,04/03/2021,IJ00088965,20.54,Total Gas and Power Limited
East Lindsey District Council,http://statistics.data.gov.uk/id/local-authority/32UC,TL Property,Electricity,04/03/2021,IJ00088965,19.21,Total Gas and Power Limited
East Lindsey District Council,http://statistics.data.gov.uk/id/local-authority/32UC,TL Property,Electricity,04/03/2021,IJ00088965,17.36,Total Gas and Power Limited
East Lindsey District Council,http://statistics.data.gov.uk/id/local-authority/32UC,Leisure Operations,Electricity,04/03/2021,IJ00088965,17.98,Total Gas and Power Limited
East Lindsey District Council,http://statistics.data.gov.uk/id/local-authority/32UC,TL Property,Electricity,04/03/2021,IJ00088965,24.50,Total Gas and Power Limited
East Lindsey District Council,http://statistics.data.gov.uk/id/local-authority/32UC,Neighbourhood Services,Electricity,04/03/2021,IJ00088965,233.07,Total Gas and Power Limited
East Lindsey District Council,http://statistics.data.gov.uk/id/local-authority/32UC,Neighbourhood Services,Electricity,04/03/2021,IJ00088965,219.30,Total Gas and Power Limited
East Lindsey District Council,http://statistics.data.gov.uk/id/local-authority/32UC,Neighbourhood Services,Electricity,04/03/2021,IJ00088965,139.14,Total Gas and Power Limited
East Lindsey District Council,http://statistics.data.gov.uk/id/local-authority/32UC,Neighbourhood Services,Electricity,04/03/2021,IJ00088965,18.20,Total Gas and Power Limited
East Lindsey District Council,http://statistics.data.gov.uk/id/local-authority/32UC,Neighbourhood Services,Electricity,04/03/2021,IJ00088965,50.61,Total Gas and Power Limited
East Lindsey District Council,http://statistics.data.gov.uk/id/local-authority/32UC,Neighbourhood Services,Electricity,04/03/2021,IJ00088965,363.12,Total Gas and Power Limited
East Lindsey District Council,http://statistics.data.gov.uk/id/local-authority/32UC,Neighbourhood Services,Electricity,04/03/2021,IJ00088965,423.19,Total Gas and Power Limited
East Lindsey District Council,http://statistics.data.gov.uk/id/local-authority/32UC,TL Property,Electricity,04/03/2021,IJ00088965,345.71,Total Gas and Power Limited
East Lindsey District Council,http://statistics.data.gov.uk/id/local-authority/32UC,Leisure Operations,Electricity,04/03/2021,IJ00088965,39.09,Total Gas and Power Limited
East Lindsey District Council,http://statistics.data.gov.uk/id/local-authority/32UC,Leisure Operations,Electricity,04/03/2021,IJ00088965,6.94,Total Gas and Power Limited
East Lindsey District Council,http://statistics.data.gov.uk/id/local-authority/32UC,TL Property,Electricity,04/03/2021,IJ00088965,3325.94,Total Gas and Power Limited
East Lindsey District Council,http://statistics.data.gov.uk/id/local-authority/32UC,Waste Services Manager,Electricity,04/03/2021,IJ00088965,27.55,Total Gas and Power Limited
East Lindsey District Council,http://statistics.data.gov.uk/id/local-authority/32UC,Waste Services Manager,Electricity,04/03/2021,IJ00088965,103.89,Total Gas and Power Limited
East Lindsey District Council,http://statistics.data.gov.uk/id/local-authority/32UC,Waste Services Manager,Electricity,04/03/2021,IJ00088965,19.21,Total Gas and Power Limited
East Lindsey District Council,http://statistics.data.gov.uk/id/local-authority/32UC,Theatre Manager,Electricity,04/03/2021,IJ00088965,12.65,Total Gas and Power Limited
East Lindsey District Council,http://statistics.data.gov.uk/id/local-authority/32UC,Neighbourhood Services,Electricity,04/03/2021,IJ00088965,34.51,Total Gas and Power Limited
East Lindsey District Council,http://statistics.data.gov.uk/id/local-authority/32UC,TL Property,Electricity,04/03/2021,IJ00088965,406.15,Total Gas and Power Limited
East Lindsey District Council,http://statistics.data.gov.uk/id/local-authority/32UC,TL Property,Electricity,04/03/2021,IJ00088965,257.26,Total Gas and Power Limited
East Lindsey District Council,http://statistics.data.gov.uk/id/local-authority/32UC,TL Property,Electricity,04/03/2021,IJ00088965,45.13,Total Gas and Power Limited
East Lindsey District Council,http://statistics.data.gov.uk/id/local-authority/32UC,TL Property,Electricity,04/03/2021,IJ00088965,33.27,Total Gas and Power Limited
East Lindsey District Council,http://statistics.data.gov.uk/id/local-authority/32UC,TL Property,Electricity,04/03/2021,IJ00088965,1776.72,Total Gas and Power Limited
East Lindsey District Council,http://statistics.data.gov.uk/id/local-authority/32UC,Neighbourhood Services,Electricity,04/03/2021,IJ00088965,49.24,Total Gas and Power Limited
East Lindsey District Council,http://statistics.data.gov.uk/id/local-authority/32UC,TL Property,Electricity,04/03/2021,IJ00088965,25.76,Total Gas and Power Limited
East Lindsey District Council,http://statistics.data.gov.uk/id/local-authority/32UC,Neighbourhood Services,Electricity,04/03/2021,IJ00088965,54.73,Total Gas and Power Limited
East Lindsey District Council,http://statistics.data.gov.uk/id/local-authority/32UC,Neighbourhood Services,Electricity,04/03/2021,IJ00088965,28.67,Total Gas and Power Limited
East Lindsey District Council,http://statistics.data.gov.uk/id/local-authority/32UC,Neighbourhood Services,Electricity,04/03/2021,IJ00088965,20.68,Total Gas and Power Limited
East Lindsey District Council,http://statistics.data.gov.uk/id/local-authority/32UC,Neighbourhood Services,Electricity,04/03/2021,IJ00088965,42.10,Total Gas and Power Limited
East Lindsey District Council,http://statistics.data.gov.uk/id/local-authority/32UC,TL Property,Electricity,04/03/2021,IJ00088965,21.50,Total Gas and Power Limited
East Lindsey District Council,http://statistics.data.gov.uk/id/local-authority/32UC,TL Property,Electricity,04/03/2021,IJ00088965,660.26,Total Gas and Power Limited
East Lindsey District Council,http://statistics.data.gov.uk/id/local-authority/32UC,Neighbourhood Services,Electricity,04/03/2021,IJ00088965,52.31,Total Gas and Power Limited
East Lindsey District Council,http://statistics.data.gov.uk/id/local-authority/32UC,Neighbourhood Services,Electricity,04/03/2021,IJ00088965,41.99,Total Gas and Power Limited
East Lindsey District Council,http://statistics.data.gov.uk/id/local-authority/32UC,Neighbourhood Services,Electricity,04/03/2021,IJ00088965,17.64,Total Gas and Power Limited
East Lindsey District Council,http://statistics.data.gov.uk/id/local-authority/32UC,TL Property,Electricity,04/03/2021,IJ00088965,1899.69,Total Gas and Power Limited
East Lindsey District Council,http://statistics.data.gov.uk/id/local-authority/32UC,TL Property,Electricity,04/03/2021,IJ00088965,69.05,Total Gas and Power Limited
East Lindsey District Council,http://statistics.data.gov.uk/id/local-authority/32UC,TL Property,Electricity,04/03/2021,IJ00088965,64.19,Total Gas and Power Limited
East Lindsey District Council,http://statistics.data.gov.uk/id/local-authority/32UC,Growth Relationships & Growth Promotions,Electricity,04/03/2021,IJ00088965,863.29,Total Gas and Power Limited
East Lindsey District Council,http://statistics.data.gov.uk/id/local-authority/32UC,Growth Relationships & Growth Promotions,Electricity,04/03/2021,IJ00088965,384.34,Total Gas and Power Limited
East Lindsey District Council,http://statistics.data.gov.uk/id/local-authority/32UC,TL Property,Electricity,04/03/2021,IJ00088965,103.27,Total Gas and Power Limited
East Lindsey District Council,http://statistics.data.gov.uk/id/local-authority/32UC,TL Property,Electricity,04/03/2021,IJ00088965,18.99,Total Gas and Power Limited
East Lindsey District Council,http://statistics.data.gov.uk/id/local-authority/32UC,TL Property,Electricity,04/03/2021,IJ00088965,31.58,Total Gas and Power Limited
East Lindsey District Council,http://statistics.data.gov.uk/id/local-authority/32UC,TL Property,Electricity,04/03/2021,IJ00088965,20.49,Total Gas and Power Limited
East Lindsey District Council,http://statistics.data.gov.uk/id/local-authority/32UC,TL Property,Electricity,04/03/2021,IJ00088965,86.37,Total Gas and Power Limited
East Lindsey District Council,http://statistics.data.gov.uk/id/local-authority/32UC,TL Property,Electricity,04/03/2021,IJ00088965,24.75,Total Gas and Power Limited
East Lindsey District Council,http://statistics.data.gov.uk/id/local-authority/32UC,TL Property,Electricity,04/03/2021,IJ00088965,42.82,Total Gas and Power Limited
East Lindsey District Council,http://statistics.data.gov.uk/id/local-authority/32UC,TL Property,Electricity,04/03/2021,IJ00088965,42.55,Total Gas and Power Limited
East Lindsey District Council,http://statistics.data.gov.uk/id/local-authority/32UC,TL Property,Electricity,04/03/2021,IJ00088965,89.17,Total Gas and Power Limited
East Lindsey District Council,http://statistics.data.gov.uk/id/local-authority/32UC,TL Property,Electricity,04/03/2021,IJ00088965,20.19,Total Gas and Power Limited
East Lindsey District Council,http://statistics.data.gov.uk/id/local-authority/32UC,Public Protection,Electricity,04/03/2021,IJ00088965,20.12,Total Gas and Power Limited
East Lindsey District Council,http://statistics.data.gov.uk/id/local-authority/32UC,Public Protection,Electricity,04/03/2021,IJ00088965,300.68,Total Gas and Power Limited
East Lindsey District Council,http://statistics.data.gov.uk/id/local-authority/32UC,TL Property,Electricity,04/03/2021,IJ00088965,159.78,Total Gas and Power Limited
East Lindsey District Council,http://statistics.data.gov.uk/id/local-authority/32UC,TL Property,Electricity,04/03/2021,IJ00088965,101.20,Total Gas and Power Limited
East Lindsey District Council,http://statistics.data.gov.uk/id/local-authority/32UC,TL Property,Electricity,04/03/2021,IJ00088965,29.62,Total Gas and Power Limited
East Lindsey District Council,http://statistics.data.gov.uk/id/local-authority/32UC,Corporate Management,Professional & Contractors Fees,16/03/2021,IJ00089217,2450.00,Cabinet Office
East Lindsey District Council,http://statistics.data.gov.uk/id/local-authority/32UC,TL Property,Professional & Contractors Fees,04/03/2021,IJ00089022,300.00,Energy & Compliance Technology Ltd Ta Compliance 365
East Lindsey District Council,http://statistics.data.gov.uk/id/local-authority/32UC,TL Property,Water and Sewerage Charges,11/03/2021,IJ00089131,10546.09,Wave Anglian Water Business National Ltd
East Lindsey District Council,http://statistics.data.gov.uk/id/local-authority/32UC,Neighbourhood Services,Water and Sewerage Charges,11/03/2021,IJ00089156,319.72,Wave Anglian Water Business National Ltd
East Lindsey District Council,http://statistics.data.gov.uk/id/local-authority/32UC,Neighbourhood Services,Water and Sewerage Charges,11/03/2021,IJ00089175,281.68,Wave Anglian Water Business National Ltd
East Lindsey District Council,http://statistics.data.gov.uk/id/local-authority/32UC,Hsg Advice & Homelessness TL,Grants and Contributions to Outside Bodies- No Service Recei,04/03/2021,IJ00088927,4542.05,Gary Walmsley Construction
East Lindsey District Council,http://statistics.data.gov.uk/id/local-authority/32UC,Planning,Other Private Contractors,04/03/2021,IJ00088955,3631.45,Squire Patton Boggs UK LLP
East Lindsey District Council,http://statistics.data.gov.uk/id/local-authority/32UC,Planning,Other Private Contractors,04/03/2021,IJ00088956,9261.94,Squire Patton Boggs UK LLP
East Lindsey District Council,http://statistics.data.gov.uk/id/local-authority/32UC,Planning,Other Private Contractors,11/03/2021,IJ00089170,2000.00,Squire Patton Boggs UK LLP
East Lindsey District Council,http://statistics.data.gov.uk/id/local-authority/32UC,Planning,Other Private Contractors,11/03/2021,IJ00089173,5000.00,Squire Patton Boggs UK LLP
East Lindsey District Council,http://statistics.data.gov.uk/id/local-authority/32UC,Theatre Manager,Buildings Maintenance - Programmed,04/03/2021,IJ00089012,406.64,Second Element Limited
East Lindsey District Council,http://statistics.data.gov.uk/id/local-authority/32UC,TL Property,Buildings Maintenance - Programmed,04/03/2021,IJ00089012,163.08,Second Element Limited
East Lindsey District Council,http://statistics.data.gov.uk/id/local-authority/32UC,Leisure Operations,Buildings Maintenance - Programmed,04/03/2021,IJ00089012,406.64,Second Element Limited
East Lindsey District Council,http://statistics.data.gov.uk/id/local-authority/32UC,Leisure Operations,Buildings Maintenance - Programmed,04/03/2021,IJ00089012,406.64,Second Element Limited
East Lindsey District Council,http://statistics.data.gov.uk/id/local-authority/32UC,Leisure Operations,Buildings Maintenance - Programmed,04/03/2021,IJ00089012,406.64,Second Element Limited
East Lindsey District Council,http://statistics.data.gov.uk/id/local-authority/32UC,TL Property,Buildings Maintenance - Programmed,04/03/2021,IJ00089012,310.05,Second Element Limited
East Lindsey District Council,http://statistics.data.gov.uk/id/local-authority/32UC,TL Property,Buildings Maintenance - Programmed,04/03/2021,IJ00089012,406.64,Second Element Limited
East Lindsey District Council,http://statistics.data.gov.uk/id/local-authority/32UC,TL Property,Buildings Maintenance - Programmed,04/03/2021,IJ00089012,732.86,Second Element Limited
East Lindsey District Council,http://statistics.data.gov.uk/id/local-authority/32UC,Neighbourhood Services,Buildings Maintenance - Programmed,04/03/2021,IJ00089012,163.08,Second Element Limited
East Lindsey District Council,http://statistics.data.gov.uk/id/local-authority/32UC,Leisure Operations,Buildings Maintenance - Programmed,04/03/2021,IJ00089012,310.05,Second Element Limited
East Lindsey District Council,http://statistics.data.gov.uk/id/local-authority/32UC,Leisure Operations,Buildings Maintenance - Programmed,04/03/2021,IJ00089012,406.63,Second Element Limited
East Lindsey District Council,http://statistics.data.gov.uk/id/local-authority/32UC,Neighbourhood Services,Buildings Maintenance - Programmed,04/03/2021,IJ00089012,163.01,Second Element Limited
East Lindsey District Council,http://statistics.data.gov.uk/id/local-authority/32UC,Neighbourhood Services,Buildings Maintenance - Programmed,04/03/2021,IJ00089012,163.08,Second Element Limited
East Lindsey District Council,http://statistics.data.gov.uk/id/local-authority/32UC,Neighbourhood Services,Buildings Maintenance - Programmed,04/03/2021,IJ00089012,163.08,Second Element Limited
East Lindsey District Council,http://statistics.data.gov.uk/id/local-authority/32UC,Neighbourhood Services,Buildings Maintenance - Programmed,04/03/2021,IJ00089012,163.08,Second Element Limited
East Lindsey District Council,http://statistics.data.gov.uk/id/local-authority/32UC,TL Property,Buildings Maintenance - Programmed,04/03/2021,IJ00089012,163.08,Second Element Limited
East Lindsey District Council,http://statistics.data.gov.uk/id/local-authority/32UC,TL Property,Buildings Maintenance - Programmed,04/03/2021,IJ00089012,163.08,Second Element Limited
East Lindsey District Council,http://statistics.data.gov.uk/id/local-authority/32UC,Neighbourhood Services,Buildings Maintenance - Programmed,04/03/2021,IJ00089012,163.08,Second Element Limited
East Lindsey District Council,http://statistics.data.gov.uk/id/local-authority/32UC,Neighbourhood Services,Buildings Maintenance - Programmed,04/03/2021,IJ00089012,163.08,Second Element Limited
East Lindsey District Council,http://statistics.data.gov.uk/id/local-authority/32UC,Leisure Operations,Buildings Maintenance - Programmed,04/03/2021,IJ00089012,163.08,Second Element Limited
East Lindsey District Council,http://statistics.data.gov.uk/id/local-authority/32UC,Theatre Manager,Buildings Maintenance - Programmed,04/03/2021,IJ00089012,163.08,Second Element Limited
East Lindsey District Council,http://statistics.data.gov.uk/id/local-authority/32UC,TL Property,Buildings Maintenance - Programmed,04/03/2021,IJ00089012,163.08,Second Element Limited
East Lindsey District Council,http://statistics.data.gov.uk/id/local-authority/32UC,Leisure Operations,Buildings Maintenance - Programmed,04/03/2021,IJ00089012,326.17,Second Element Limited
East Lindsey District Council,http://statistics.data.gov.uk/id/local-authority/32UC,Neighbourhood Services,Buildings Maintenance - Programmed,04/03/2021,IJ00089012,163.08,Second Element Limited
East Lindsey District Council,http://statistics.data.gov.uk/id/local-authority/32UC,TL Property,Buildings Maintenance - Programmed,04/03/2021,IJ00089012,163.08,Second Element Limited
East Lindsey District Council,http://statistics.data.gov.uk/id/local-authority/32UC,Growth Relationships & Growth Promotions,Buildings Maintenance - Programmed,04/03/2021,IJ00089012,310.05,Second Element Limited
East Lindsey District Council,http://statistics.data.gov.uk/id/local-authority/32UC,Growth Relationships & Growth Promotions,Buildings Maintenance - Programmed,04/03/2021,IJ00089012,310.05,Second Element Limited
East Lindsey District Council,http://statistics.data.gov.uk/id/local-authority/32UC,TL Property,Buildings Maintenance - Programmed,04/03/2021,IJ00089012,163.08,Second Element Limited
East Lindsey District Council,http://statistics.data.gov.uk/id/local-authority/32UC,TL Property,Buildings Maintenance - Programmed,04/03/2021,IJ00089012,163.08,Second Element Limited
East Lindsey District Council,http://statistics.data.gov.uk/id/local-authority/32UC,TL Property,Buildings Maintenance - Programmed,11/03/2021,IJ00089037,1060.00,Second Element Limited
East Lindsey District Council,http://statistics.data.gov.uk/id/local-authority/32UC,TL Property,Buildings Maintenance - Programmed,11/03/2021,IJ00089136,94.05,Second Element Limited
East Lindsey District Council,http://statistics.data.gov.uk/id/local-authority/32UC,Neighbourhood Services,Buildings Maintenance - Programmed,11/03/2021,IJ00089136,94.05,Second Element Limited
East Lindsey District Council,http://statistics.data.gov.uk/id/local-authority/32UC,Neighbourhood Services,Buildings Maintenance - Programmed,11/03/2021,IJ00089136,94.05,Second Element Limited
East Lindsey District Council,http://statistics.data.gov.uk/id/local-authority/32UC,Neighbourhood Services,Buildings Maintenance - Programmed,11/03/2021,IJ00089136,94.05,Second Element Limited
East Lindsey District Council,http://statistics.data.gov.uk/id/local-authority/32UC,TL Property,Buildings Maintenance - Programmed,11/03/2021,IJ00089136,94.05,Second Element Limited
East Lindsey District Council,http://statistics.data.gov.uk/id/local-authority/32UC,TL Property,Buildings Maintenance - Programmed,11/03/2021,IJ00089136,94.05,Second Element Limited
East Lindsey District Council,http://statistics.data.gov.uk/id/local-authority/32UC,Neighbourhood Services,Buildings Maintenance - Programmed,11/03/2021,IJ00089136,94.05,Second Element Limited
East Lindsey District Council,http://statistics.data.gov.uk/id/local-authority/32UC,Theatre Manager,Buildings Maintenance - Programmed,11/03/2021,IJ00089136,94.05,Second Element Limited
East Lindsey District Council,http://statistics.data.gov.uk/id/local-authority/32UC,Leisure Operations,Buildings Maintenance - Programmed,11/03/2021,IJ00089136,94.05,Second Element Limited
East Lindsey District Council,http://statistics.data.gov.uk/id/local-authority/32UC,Neighbourhood Services,Buildings Maintenance - Programmed,11/03/2021,IJ00089136,94.05,Second Element Limited
East Lindsey District Council,http://statistics.data.gov.uk/id/local-authority/32UC,Growth Relationships & Growth Promotions,Professional & Contractors Fees,16/03/2021,IJ00089218,433.00,NEW START NETWORKS LTD
East Lindsey District Council,http://statistics.data.gov.uk/id/local-authority/32UC,Environmental Health,Other Miscellaneous Expenses,11/03/2021,IJ00089079,990.00,MALLARD CONSULTANCY LTD
East Lindsey District Council,http://statistics.data.gov.uk/id/local-authority/32UC,Hsg Advice & Homelessness TL,Computer Hardware Purchase,04/03/2021,IJ00088972,1518.00,Housing Partners Limited
East Lindsey District Council,http://statistics.data.gov.uk/id/local-authority/32UC,Hsg Advice & Homelessness TL,Computer Hardware Purchase,11/03/2021,IJ00089106,13995.00,Housing Partners Limited
East Lindsey District Council,http://statistics.data.gov.uk/id/local-authority/32UC,TL Property,Buildings Maintenance - Programmed,16/03/2021,IJ00089186,500.00,BEA Fire Safety Limited
East Lindsey District Council,http://statistics.data.gov.uk/id/local-authority/32UC,Theatre Manager,Buildings Maintenance - Responsive,04/03/2021,IJ00089002,94.13,AARON SERVICES LTD
East Lindsey District Council,http://statistics.data.gov.uk/id/local-authority/32UC,Growth Relationships & Growth Promotions,Buildings Maintenance - Responsive,04/03/2021,IJ00089002,75.30,AARON SERVICES LTD
East Lindsey District Council,http://statistics.data.gov.uk/id/local-authority/32UC,Growth Relationships & Growth Promotions,Buildings Maintenance - Programmed,04/03/2021,IJ00089002,219.94,AARON SERVICES LTD
East Lindsey District Council,http://statistics.data.gov.uk/id/local-authority/32UC,Environmental Health,Professional & Contractors Fees,04/03/2021,IJ00088959,956.25,G2 RECRUITMENT SOLUTIONS
East Lindsey District Council,http://statistics.data.gov.uk/id/local-authority/32UC,Environmental Health,Professional & Contractors Fees,04/03/2021,IJ00089034,956.25,G2 RECRUITMENT SOLUTIONS
East Lindsey District Council,http://statistics.data.gov.uk/id/local-authority/32UC,Environmental Health,Professional & Contractors Fees,11/03/2021,IJ00089056,956.25,G2 RECRUITMENT SOLUTIONS
East Lindsey District Council,http://statistics.data.gov.uk/id/local-authority/32UC,Planning,Planning Application Fees,04/03/2021,IJ00088931,1848.00,PORTALPLANQUESTLTD
East Lindsey District Council,http://statistics.data.gov.uk/id/local-authority/32UC,Planning,Planning Application Fees,16/03/2021,IJ00089274,468.00,PORTALPLANQUESTLTD
East Lindsey District Council,http://statistics.data.gov.uk/id/local-authority/32UC,Growth Relationships & Growth Promotions,Other Communication Costs,04/03/2021,IJ00088986,1000.00,DISTRACT LTD
East Lindsey District Council,http://statistics.data.gov.uk/id/local-authority/32UC,Growth Relationships & Growth Promotions,Other Communication Costs,16/03/2021,IJ00089215,2500.00,DISTRACT LTD
East Lindsey District Council,http://statistics.data.gov.uk/id/local-authority/32UC,Growth Relationships & Growth Promotions,Other Communication Costs,16/03/2021,IJ00089219,1000.00,DISTRACT LTD
East Lindsey District Council,http://statistics.data.gov.uk/id/local-authority/32UC,Growth Relationships & Growth Promotions,Other Communication Costs,16/03/2021,IJ00089220,1000.00,DISTRACT LTD
East Lindsey District Council,http://statistics.data.gov.uk/id/local-authority/32UC,Planning,Agency Staff,04/03/2021,IJ00088973,4110.00,Churchill Knight Umbrella Limited
East Lindsey District Council,http://statistics.data.gov.uk/id/local-authority/32UC,Neighbourhood Services,Other Private Contractors,11/03/2021,IJ00089067,38599.92,DANFO UK LTD
East Lindsey District Council,http://statistics.data.gov.uk/id/local-authority/32UC,Capital WIP,Works to Buildings (Sub Contractors),16/03/2021,IJ00089228,3885.12,MARSHALLS PLC
East Lindsey District Council,http://statistics.data.gov.uk/id/local-authority/32UC,Capital WIP,Works to Buildings (Sub Contractors),16/03/2021,IJ00089229,3885.12,MARSHALLS PLC
East Lindsey District Council,http://statistics.data.gov.uk/id/local-authority/32UC,Capital WIP,Works to Buildings (Sub Contractors),16/03/2021,IJ00089230,1532.93,MARSHALLS PLC
East Lindsey District Council,http://statistics.data.gov.uk/id/local-authority/32UC,Capital WIP,Works to Buildings (Sub Contractors),16/03/2021,IJ00089231,2862.72,MARSHALLS PLC
East Lindsey District Council,http://statistics.data.gov.uk/id/local-authority/32UC,Capital WIP,Works to Buildings (Sub Contractors),16/03/2021,IJ00089232,817.92,MARSHALLS PLC
East Lindsey District Council,http://statistics.data.gov.uk/id/local-authority/32UC,Capital WIP,Works to Buildings (Sub Contractors),16/03/2021,IJ00089233,1288.22,MARSHALLS PLC
East Lindsey District Council,http://statistics.data.gov.uk/id/local-authority/32UC,Capital WIP,Works to Buildings (Sub Contractors),16/03/2021,IJ00089234,817.92,MARSHALLS PLC
East Lindsey District Council,http://statistics.data.gov.uk/id/local-authority/32UC,Capital WIP,Works to Buildings (Sub Contractors),16/03/2021,IJ00089235,1717.63,MARSHALLS PLC
East Lindsey District Council,http://statistics.data.gov.uk/id/local-authority/32UC,Capital WIP,Works to Buildings (Sub Contractors),16/03/2021,IJ00089236,1022.40,MARSHALLS PLC
East Lindsey District Council,http://statistics.data.gov.uk/id/local-authority/32UC,Capital WIP,Works to Buildings (Sub Contractors),16/03/2021,IJ00089237,1717.63,MARSHALLS PLC
East Lindsey District Council,http://statistics.data.gov.uk/id/local-authority/32UC,Capital WIP,Works to Buildings (Sub Contractors),16/03/2021,IJ00089241,3978.58,MARSHALLS PLC
East Lindsey District Council,http://statistics.data.gov.uk/id/local-authority/32UC,TL Property,Agency Staff,04/03/2021,IJ00088995,3915.50,MICHAEL PAGE INTERNATIONAL RECRUITMENT LTD
East Lindsey District Council,http://statistics.data.gov.uk/id/local-authority/32UC,TL Property,Agency Staff,04/03/2021,IJ00088997,1588.75,MICHAEL PAGE INTERNATIONAL RECRUITMENT LTD
East Lindsey District Council,http://statistics.data.gov.uk/id/local-authority/32UC,TL Property,Professional & Contractors Fees,11/03/2021,IJ00089041,5450.00,The Leisure Company UK Ltd
East Lindsey District Council,http://statistics.data.gov.uk/id/local-authority/32UC,Hsg Advice & Homelessness TL,Furniture and Equipment,04/03/2021,IJ00088952,1100.00,Waste Away Painting Services
East Lindsey District Council,http://statistics.data.gov.uk/id/local-authority/32UC,Growth Relationships & Growth Promotions,Other Communication Costs,16/03/2021,IJ00089187,1600.00,Baybury Marketing and Communications
East Lindsey District Council,http://statistics.data.gov.uk/id/local-authority/32UC,Information Technology,Computer Hardware Maintenance,11/03/2021,IJ00089123,408.09,Direct Telecommunications Systems Tas Direct Voice and Data
East Lindsey District Council,http://statistics.data.gov.uk/id/local-authority/32UC,Growth Relationships & Growth Promotions,Other Miscellaneous Expenses,16/03/2021,IJ00089203,3084.00,Institute of Place Management
East Lindsey District Council,http://statistics.data.gov.uk/id/local-authority/32UC,Capital WIP,Demolition/Site Clearance Costs,16/03/2021,IJ00089207,136613.16,G F Tomlinson Building Limited
East Lindsey District Council,http://statistics.data.gov.uk/id/local-authority/32UC,Growth Relationships & Growth Promotions,Professional & Contractors Fees,04/03/2021,IJ00088985,2300.00,Collison & Associates Limited
East Lindsey District Council,http://statistics.data.gov.uk/id/local-authority/32UC,Planning,Professional & Contractors Fees,16/03/2021,IJ00089242,750.00,Simmonds Planning Ltd
East Lindsey District Council,http://statistics.data.gov.uk/id/local-authority/32UC,Capital WIP,Works to Buildings (Main Contractor),11/03/2021,IJ00089081,740.00,PORTABLE SPACE LIMITED
East Lindsey District Council,http://statistics.data.gov.uk/id/local-authority/32UC,Capital WIP,Works to Buildings (Main Contractor),16/03/2021,IJ00089260,1762.38,Fire Industry Specialists Tas Amberfire Ltd
East Lindsey District Council,http://statistics.data.gov.uk/id/local-authority/32UC,Planning Policy,Other Private Contractors,16/03/2021,IJ00089223,9002.66,Pegasus Planning Group
East Lindsey District Council,http://statistics.data.gov.uk/id/local-authority/32UC,Planning,Other Private Contractors,04/03/2021,IJ00088948,17301.78,Create Consulting Engineers Ltd
East Lindsey District Council,http://statistics.data.gov.uk/id/local-authority/32UC,Information Technology,Computer Hardware Purchase,11/03/2021,IJ00089038,1919.10,Teqex Ltd
East Lindsey District Council,http://statistics.data.gov.uk/id/local-authority/32UC,Hsg Advice & Homelessness TL,Furniture and Equipment,11/03/2021,IJ00089040,662.00,RGL CARPETS
East Lindsey District Council,http://statistics.data.gov.uk/id/local-authority/32UC,Growth Relationships & Growth Promotions,Professional & Contractors Fees,11/03/2021,IJ00089132,3500.00,Curtins Consulting Ltd
